bitfinex-derivatives/quotes_BTCF0:USTF0_20250218
["timestamp","ask_amount","ask_price","bid_price","bid_amount"]
[1739894305428,0.1365843,95670.0,95658.0,0.0517]
[1739894305733,0.001,95658.0,95654.0,0.3608]
[1739894305921,0.2091231,95655.0,95654.0,0.3608]
[1739894306125,0.2091302,95652.0,95647.0,0.3608]
[1739894306328,0.0564,95651.0,95647.0,0.3608]
[1739894306631,0.06636129,95651.0,95645.0,0.3608]
[1739894307432,0.2091507,95642.0,95641.0,0.0522]
[1739894307642,0.2091573,95639.0,95638.0,0.00015679]
[1739894308019,0.0522,95645.0,95638.0,0.00015679]
[1739894308231,0.2091489,95643.0,95638.0,0.00015679]
[1739894308423,0.0522,95645.0,95638.0,0.00015679]
[1739894308625,0.2091562,95640.0,95638.0,0.00015679]
[1739894309029,0.2091506,95643.0,95638.0,0.00015679]
[1739894309327,0.0522,95645.0,95641.0,0.2091526]
[1739894309536,0.0522,95645.0,95638.0,0.36095679]
[1739894309830,0.209147,95644.0,95638.0,0.57011489]
[1739894310132,0.2091488,95643.0,95638.0,0.57011489]
[1739894310530,0.2091557,95640.0,95638.0,0.36095679]
[1739894311421,0.2091557,95640.0,95638.0,0.00015679]
[1739894313234,0.2111557,95640.0,95638.0,0.00015679]
[1739894314026,0.002,95640.0,95638.0,0.00015679]
[1739894314228,0.002,95640.0,95639.0,0.2091573]
[1739894314429,0.002,95640.0,95638.0,0.00015679]
[1739894314927,0.2091573,95639.0,95638.0,0.00015679]
[1739894316532,0.21949036,95639.0,95638.0,0.00015679]
[1739894316935,0.2111573,95639.0,95638.0,0.00015679]
[1739894317935,0.002,95639.0,95638.0,0.00015679]
[1739894318235,0.002,95639.0,95638.0,0.20931629]
[1739894318437,0.2111573,95639.0,95638.0,0.20931629]
[1739894318835,0.2111573,95639.0,95638.0,0.00015679]
[1739894320035,0.002,95639.0,95638.0,0.00015679]
[1739894320242,0.002,95639.0,95638.0,0.20931629]
[1739894320940,0.2111573,95639.0,95638.0,0.20931629]
[1739894321439,0.2111573,95639.0,95638.0,0.00015679]
[1739894323037,0.002,95639.0,95638.0,0.00015679]
[1739894323836,0.002,95639.0,95638.0,0.20931629]
[1739894324435,0.2111573,95639.0,95638.0,0.00015679]
[1739894325736,0.002,95639.0,95638.0,0.20931629]
[1739894326138,0.2111573,95639.0,95638.0,0.20931629]
[1739894326326,0.002,95639.0,95638.0,0.20931629]
[1739894326742,0.2111573,95639.0,95638.0,0.20931629]
[1739894326942,0.2111573,95639.0,95638.0,0.00015679]
[1739894331945,0.002,95639.0,95638.0,0.00015679]
[1739894332144,0.002,95639.0,95638.0,0.20925204]
[1739894332438,0.2111573,95639.0,95638.0,9.254e-05]
[1739894338737,0.002,95639.0,95615.0,0.0537]
[1739894338934,0.3608,95620.0,95615.0,0.0537]
[1739894339136,0.2092045,95618.0,95615.0,0.0537]
[1739894339747,0.2092076,95616.0,95615.0,0.0537]
[1739894340144,0.1058,95619.0,95615.0,0.0537]
[1739894340748,0.1058,95619.0,95615.0,0.005]
[1739894341145,0.11605805,95619.0,95615.0,0.00190108]
[1739894341342,0.11605805,95619.0,95614.0,0.00156854]
[1739894341547,0.11605805,95619.0,95615.0,0.003]
[1739894344141,0.21241118,95619.0,95615.0,0.003]
[1739894344342,0.21241118,95619.0,95614.0,0.00156854]
[1739894344343,0.21241118,95619.0,95614.0,0.00456854]
[1739894345141,0.21241118,95619.0,95615.0,0.003]
[1739894346053,0.3608,95616.0,95607.0,0.00015688]
[1739894346248,0.3608,95608.0,95585.0,0.0523]
[1739894346450,0.3608,95608.0,95585.0,0.17382]
[1739894346451,0.0539,95607.0,95585.0,0.17382]
[1739894346755,0.0539,95607.0,95585.0,0.0523]
[1739894347146,0.3608,95606.0,95585.0,0.0523]
[1739894347548,0.048,95605.0,95594.0,0.00015688]
[1739894347942,0.0555,95604.0,95594.0,0.00015688]
[1739894348146,0.26788092,95606.0,95594.0,0.00015688]
[1739894348353,0.00781917,95601.0,95600.0,0.26263916]
[1739894348572,0.00781917,95601.0,95600.0,0.05339756]
[1739894348962,0.00781917,95601.0,95600.0,0.05539756]
[1739894352642,0.00781917,95601.0,95600.0,0.41619756]
[1739894352848,0.00781917,95601.0,95600.0,0.05539756]
[1739894355252,0.25263848,95610.0,95600.0,0.05539756]
[1739894355448,0.00768779,95601.0,95600.0,0.05539756]
[1739894364495,0.00768779,95601.0,95600.0,0.26464016]
[1739894364690,0.09635579,95604.0,95603.0,0.2092361]
[1739894365191,0.09635579,95609.0,95603.0,0.2092361]
[1739894365392,0.09635579,95609.0,95607.0,0.2092271]
[1739894365701,0.09635579,95609.0,95608.0,0.0556]
[1739894366989,0.09735579,95609.0,95608.0,0.0556]
[1739894368377,0.001,95609.0,95608.0,0.0556]
[1739894368583,0.001,95609.0,95608.0,0.23194]
[1739894368882,0.001,95609.0,95608.0,0.1105]
[1739894370281,0.001,95609.0,95604.0,0.055]
[1739894370482,0.1069,95608.0,95604.0,0.17644]
[1739894370777,0.1069,95608.0,95600.0,0.05339756]
[1739894373268,0.3608,95605.0,95600.0,0.05339756]
[1739894373573,0.3608,95605.0,95576.0,0.0551]
[1739894373878,0.12631924,95604.0,95576.0,0.1632]
[1739894375674,0.12631924,95604.0,95587.0,0.5700705]
[1739894375878,0.12631924,95604.0,95587.0,0.5706705]
[1739894376076,0.12631924,95604.0,95588.0,0.2092677]
[1739894376478,0.12631924,95604.0,95590.0,0.2092643]
[1739894376479,0.22267503,95604.0,95590.0,0.2092643]
[1739894376689,0.22267503,95604.0,95591.0,0.2092613]
[1739894377894,0.22267503,95604.0,95587.0,0.3608]
[1739894378887,0.22267503,95604.0,95590.0,0.209263]
[1739894379881,0.22267503,95604.0,95587.0,0.3608]
[1739894380388,0.22267503,95604.0,95594.0,0.20941258]
[1739894384280,0.22267503,95604.0,95594.0,0.00015688]
[1739894385882,0.12631924,95604.0,95594.0,0.00015688]
[1739894387092,0.3608,95595.0,95594.0,0.00015688]
[1739894387996,0.3736494,95595.0,95594.0,0.00015688]
[1739894389586,0.12647612,95604.0,95594.0,0.00015688]
[1739894389896,0.00015688,95604.0,95603.0,0.5700361]
[1739894390096,0.34433232,95613.0,95609.0,0.2092229]
[1739894390288,2.0,95610.0,95609.0,0.2092229]
[1739894390791,2.0,95610.0,95609.0,0.2649229]
[1739894390996,1.99643784,95610.0,95609.0,0.5649229]
[1739894391689,1.99643784,95610.0,95609.0,0.2649229]
[1739894392297,1.99643784,95610.0,95609.0,0.5649229]
[1739894392691,1.99643784,95610.0,95609.0,0.2649229]
[1739894393087,1.99843784,95610.0,95609.0,0.2649229]
[1739894393801,1.99843784,95610.0,95609.0,0.5649229]
[1739894393991,1.99843784,95610.0,95609.0,0.7859229]
[1739894395298,1.99843784,95610.0,95609.0,0.4859229]
[1739894400708,1.99843784,95610.0,95609.0,0.2649229]
[1739894402604,1.85581528,95610.0,95609.0,0.2649229]
[1739894404204,1.83280457,95610.0,95609.0,0.2649229]
[1739894404405,1.30934993,95610.0,95609.0,1.7649229]
[1739894404607,1.16049994,95610.0,95609.0,2.0649229]
[1739894405498,1.16049994,95610.0,95609.0,1.7649229]
[1739894406397,1.16049994,95610.0,95609.0,1.5]
[1739894406912,1.52129994,95610.0,95609.0,1.5]
[1739894407795,1.52129994,95610.0,95608.0,0.209224]
[1739894408197,1.52129994,95610.0,95593.0,0.91276]
[1739894408406,1.52129994,95610.0,95595.0,1.5]
[1739894408407,1.16049994,95610.0,95595.0,1.5]
[1739894408603,0.7216,95603.0,95595.0,1.5]
[1739894410702,0.7216,95603.0,95595.0,1.501]
[1739894411608,1.15905995,95610.0,95609.0,0.2092229]
[1739894411807,0.70493491,95610.0,95609.0,0.2092229]
[1739894412111,0.57472317,95610.0,95609.0,0.5700229]
[1739894412302,0.55369915,95610.0,95609.0,0.5700229]
[1739894412504,0.5009905,95610.0,95609.0,0.5700229]
[1739894413008,0.5049905,95610.0,95609.0,2.0700229]
[1739894413511,0.5049905,95610.0,95609.0,0.5700229]
[1739894413909,0.5009905,95610.0,95609.0,0.5700229]
[1739894414113,0.5029905,95610.0,95609.0,0.5700229]
[1739894415203,0.36571126,95610.0,95609.0,0.5700229]
[1739894415405,0.2015181,95610.0,95609.0,0.5700229]
[1739894415603,0.03012765,95610.0,95609.0,0.5700229]
[1739894415805,1.42684904,95620.0,95618.0,0.2092032]
[1739894416008,1.22661144,95620.0,95619.0,0.3608]
[1739894417408,1.23161144,95620.0,95619.0,0.3608]
[1739894417906,1.22661144,95620.0,95619.0,0.3608]
[1739894418113,1.13231044,95620.0,95619.0,0.3608]
[1739894420313,1.13231044,95620.0,95609.0,0.3608]
[1739894420517,0.1636,95619.0,95617.0,0.2092047]
[1739894420720,0.1636,95619.0,95613.0,0.3608]
[1739894420910,0.1636,95619.0,95614.0,0.12116]
[1739894421112,0.1636,95619.0,95617.0,0.209205]
[1739894421421,0.1636,95619.0,95613.0,0.3608]
[1739894421717,0.1636,95619.0,95617.0,0.2092051]
[1739894421718,0.1676,95619.0,95617.0,0.2092051]
[1739894422520,0.1676,95619.0,95613.0,0.3608]
[1739894422715,0.1676,95619.0,95616.0,0.2092074]
[1739894422914,0.3608,95618.0,95604.0,0.5700336]
[1739894423218,0.3608,95618.0,95595.0,0.3608]
[1739894423819,0.3608,95618.0,95601.0,0.2092402]
[1739894424007,0.3608,95610.0,95595.0,0.3608]
[1739894424607,0.3608,95610.0,95595.0,0.5700533]
[1739894424821,0.3608,95610.0,95595.0,0.3608]
[1739894425418,0.3608,95610.0,95599.0,0.2092441]
[1739894425620,0.3608,95610.0,95595.0,0.3608]
[1739894425822,0.3608,95610.0,95597.0,0.00356869]
[1739894426119,0.3608,95598.0,95597.0,0.00356869]
[1739894427822,0.3608,95598.0,95597.0,0.002]
[1739894428909,0.3608,95598.0,95596.0,0.2092496]
[1739894429111,0.3608,95598.0,95597.0,0.002]
[1739894430119,0.3608,95598.0,95596.0,0.2112496]
[1739894430715,0.3608,95598.0,95596.0,0.002]
[1739894430916,0.0539,95597.0,95596.0,0.002]
[1739894432818,0.0519,95597.0,95595.0,0.2092531]
[1739894433614,0.0565,95601.0,95596.0,0.002]
[1739894433817,0.0565,95601.0,95600.0,0.2092426]
[1739894434018,0.3608,95602.0,95600.0,0.2092426]
[1739894434219,0.00015688,95607.0,95606.0,0.2092295]
[1739894434711,1.48811044,95620.0,95617.0,0.2092036]
[1739894434919,1.12731044,95620.0,95617.0,0.5700036]
[1739894435228,1.12731044,95620.0,95617.0,0.2092036]
[1739894436022,1.12731044,95620.0,95617.0,0.22177519]
[1739894437224,0.00339,95619.0,95617.0,0.22177519]
[1739894437827,0.3608,95618.0,95617.0,0.01257159]
[1739894438025,0.3608,95618.0,95610.0,0.2092204]
[1739894438525,0.3608,95618.0,95603.0,0.3608]
[1739894438714,0.3608,95618.0,95603.0,0.48192]
[1739894439419,0.01175,95619.0,95603.0,0.49437479]
[1739894439621,0.01175,95619.0,95613.0,0.3608]
[1739894439926,0.01175,95619.0,95618.0,0.2092032]
[1739894440520,0.01175,95619.0,95614.0,0.0549]
[1739894441027,0.01175,95619.0,95618.0,0.2092032]
[1739894441932,0.01175,95619.0,95617.0,0.2092043]
[1739894442431,0.02011,95619.0,95617.0,0.2092043]
[1739894442637,0.02211,95619.0,95617.0,0.2092043]
[1739894443323,0.02511,95619.0,95617.0,0.2092043]
[1739894444118,0.02511,95619.0,95614.0,0.0549]
[1739894444423,0.38591,95619.0,95603.0,0.01245479]
[1739894444631,0.38591,95619.0,95583.0,0.3608]
[1739894444632,0.3608,95610.0,95609.0,0.12611912]
[1739894444828,0.3608,95610.0,95603.0,0.2092343]
[1739894445131,0.0535,95609.0,95603.0,0.2092343]
[1739894445427,0.0535,95609.0,95605.0,0.2092306]
[1739894446443,0.0535,95609.0,95603.0,0.01259495]
[1739894446728,0.0535,95609.0,95600.0,0.12611912]
[1739894446932,0.0518,95608.0,95600.0,0.12611912]
[1739894447325,0.0518,95608.0,95603.0,0.2092343]
[1739894447519,0.04183,95607.0,95603.0,0.22123799]
[1739894448234,0.04183,95607.0,95603.0,0.01200369]
[1739894448426,0.04183,95607.0,95600.0,0.12611912]
[1739894449026,0.04183,95607.0,95605.0,0.2092314]
[1739894449323,0.001,95609.0,95603.0,0.01203565]
[1739894449631,0.001,95609.0,95602.0,0.570038]
[1739894450037,0.001,95609.0,95597.0,0.12611912]
[1739894450633,0.04183,95608.0,95597.0,0.12611912]
[1739894451229,0.04183,95608.0,95597.0,0.13821869]
[1739894451425,0.04183,95608.0,95601.0,0.2092397]
[1739894451632,0.04183,95608.0,95602.0,0.2092381]
[1739894451832,0.04183,95608.0,95597.0,0.13821869]
[1739894452132,0.04183,95608.0,95597.0,0.34746569]
[1739894452333,0.002,95607.0,95597.0,0.13821869]
[1739894452829,0.3608,95602.0,95597.0,0.34746749]
[1739894453037,0.0546,95601.0,95597.0,0.34746749]
[1739894453231,0.0546,95601.0,95597.0,0.22134837]
[1739894453632,0.0546,95601.0,95599.0,0.2092446]
[1739894455236,0.002,95607.0,95602.0,0.2092382]
[1739894456532,0.002,95607.0,95598.0,0.0516]
[1739894456927,0.002,95607.0,95601.0,0.20924]
[1739894457437,0.3385386,95610.0,95597.0,0.13828385]
[1739894458529,0.3385386,95610.0,95597.0,0.34753295]
[1739894458729,0.04183,95609.0,95597.0,0.34753295]
[1739894458931,0.04183,95609.0,95597.0,0.13828385]
[1739894459931,0.3608,95600.0,95597.0,0.13828385]
[1739894460129,0.3608,95600.0,95597.0,0.01216473]
[1739894460438,0.3608,95600.0,95598.0,0.209247]
[1739894460638,0.051,95608.0,95607.0,0.2092273]
[1739894464241,0.05441,95608.0,95607.0,0.2092273]
[1739894465046,0.06277,95608.0,95607.0,0.2092273]
[1739894465449,0.07478019,95608.0,95607.0,0.2092273]
[1739894465744,0.07478019,95608.0,95594.0,0.00015688]
[1739894465944,0.3608,95599.0,95598.0,0.33536612]
[1739894466246,0.06277,95608.0,95607.0,0.2092273]
[1739894466642,0.01177,95608.0,95607.0,0.2092273]
[1739894467439,1e-07,95608.0,95607.0,0.2092273]
[1739894469247,0.0030001,95608.0,95607.0,0.2092273]
[1739894472552,0.0113601,95608.0,95607.0,0.2092273]
[1739894473550,0.0083601,95608.0,95607.0,0.2092273]
[1739894473757,0.0103601,95608.0,95607.0,0.2092273]
[1739894474542,1.48811044,95620.0,95601.0,0.0541]
[1739894474751,1.48811044,95620.0,95619.0,0.2092011]
[1739894475848,1.50073044,95620.0,95619.0,0.22105438]
[1739894476573,1.50573044,95620.0,95619.0,0.2102011]
[1739894476787,1.50573044,95620.0,95612.0,0.2092164]
[1739894477064,0.3141016,95619.0,95608.0,0.2092241]
[1739894477255,0.3608,95609.0,95608.0,0.2092241]
[1739894479055,0.3608,95609.0,95608.0,0.1992241]
[1739894479253,1.50433045,95620.0,95618.0,0.2092032]
[1739894479552,1.14293044,95620.0,95619.0,0.1597]
[1739894479744,0.74819264,95620.0,95619.0,0.1597]
[1739894479947,0.74519264,95620.0,95619.0,0.1597]
[1739894480461,4e-08,95623.0,95622.0,0.2091945]
[1739894481352,1.88087085,95630.0,95622.0,0.3608]
[1739894481550,1.16530604,95630.0,95629.0,0.5616192]
[1739894481753,5e-08,95630.0,95629.0,0.5616192]
[1739894482358,2.0,95640.0,95639.0,0.2091573]
[1739894482554,2.0,95640.0,95639.0,0.5699573]
[1739894482957,2.00022,95640.0,95639.0,0.2091573]
[1739894483157,2.00022,95640.0,95637.0,0.3608]
[1739894483552,2.00022,95640.0,95639.0,0.2091573]
[1739894483553,2.00322,95640.0,95639.0,0.2091573]
[1739894484460,2.00322,95640.0,95639.0,0.22120565]
[1739894485257,2.00322,95640.0,95630.0,0.12611912]
[1739894485563,0.0509,95639.0,95630.0,0.12611912]
[1739894485856,2.00382001,95640.0,95638.0,0.2091595]
[1739894486065,2.00322,95640.0,95638.0,0.2091595]
[1739894486853,2.00022,95640.0,95639.0,0.1045]
[1739894487048,2.00022,95640.0,95639.0,0.1594]
[1739894487854,2.00322,95640.0,95639.0,0.1594]
[1739894488854,2.00322,95640.0,95639.0,0.5202]
[1739894489464,1.394671,95640.0,95639.0,0.5202]
[1739894489759,0.9901768,95640.0,95639.0,0.5202]
[1739894489963,0.6162026,95640.0,95639.0,0.5202]
[1739894490166,1e-07,95640.0,95639.0,0.5202]
[1739894490555,1.1,95650.0,95639.0,0.5724892]
[1739894490756,1.1,95650.0,95649.0,0.3608]
[1739894490968,1.1,95650.0,95649.0,0.5699354]
[1739894491864,1.1,95650.0,95649.0,0.58209048]
[1739894492065,0.8124158,95650.0,95649.0,0.58209048]
[1739894493363,0.43162417,95650.0,95649.0,0.58209048]
[1739894493559,0.05756947,95650.0,95649.0,0.58209048]
[1739894493967,0.03635647,95650.0,95649.0,0.58209048]
[1739894494461,0.0526,95684.0,95649.0,0.37595508]
[1739894494667,0.0526,95684.0,95673.0,0.3608]
[1739894494966,0.0526,95684.0,95679.0,0.2090688]
[1739894495161,0.0526,95684.0,95674.0,0.1616]
[1739894495364,0.0526,95684.0,95682.0,0.2090629]
[1739894495870,0.0539,95694.0,95682.0,0.2090629]
[1739894496168,0.0526,95693.0,95682.0,0.2090629]
[1739894496463,0.0526,95693.0,95685.0,0.2090556]
[1739894496857,0.0526,95693.0,95689.0,0.3608]
[1739894497661,0.0526,95693.0,95689.0,0.37276695]
[1739894497864,0.0536,95693.0,95691.0,0.2090418]
[1739894498767,0.0536,95693.0,95692.0,0.2090415]
[1739894499169,0.001,95693.0,95692.0,0.2090415]
[1739894500567,0.1039,95706.0,95691.0,0.001]
[1739894500762,0.1039,95706.0,95699.0,0.2090262]
[1739894501664,0.04528554,95706.0,95700.0,0.2090227]
[1739894501862,0.04528554,95706.0,95692.0,0.001]
[1739894501863,0.04528554,95706.0,95704.0,0.2090149]
[1739894502264,0.04528554,95706.0,95705.0,0.2090131]
[1739894502663,0.04528554,95706.0,95699.0,0.001]
[1739894502857,0.04528554,95706.0,95703.0,0.2090159]
[1739894503060,0.04528554,95706.0,95699.0,0.001]
[1739894503259,0.04528554,95706.0,95705.0,0.2090131]
[1739894504874,0.10138554,95706.0,95705.0,0.2090131]
[1739894505173,0.10138554,95706.0,95705.0,0.2100131]
[1739894505671,0.32056601,95708.0,95705.0,0.001]
[1739894505861,0.32056601,95708.0,95707.0,0.2090087]
[1739894507869,0.32156601,95708.0,95707.0,0.2090087]
[1739894508480,0.32156601,95708.0,95707.0,0.2100087]
[1739894509875,0.001,95708.0,95707.0,0.2100087]
[1739894510975,0.3618,95708.0,95707.0,0.2100087]
[1739894519271,0.3618,95708.0,95707.0,0.001]
[1739894519468,0.3618,95708.0,95689.0,0.209048]
[1739894519469,0.6618,95708.0,95689.0,0.209048]
[1739894519668,0.3608,95691.0,95690.0,0.20920258]
[1739894520763,0.3608,95691.0,95690.0,0.00015678]
[1739894521075,0.95251388,95691.0,95670.0,0.18737124]
[1739894521278,0.9306873,95671.0,95670.0,0.18737124]
[1739894521787,0.7216,95671.0,95670.0,0.18737124]
[1739894522082,0.209107,95662.0,95661.0,0.24982833]
[1739894522276,0.209107,95662.0,95654.0,0.31228541]
[1739894522277,0.6608,95662.0,95654.0,0.31228541]
[1739894522471,0.2091223,95655.0,95654.0,0.31228541]
[1739894523774,0.62582475,95655.0,95654.0,0.31228541]
[1739894524576,0.32582475,95655.0,95654.0,0.31228541]
[1739894525083,0.62582475,95655.0,95654.0,0.31228541]
[1739894525381,0.32582475,95655.0,95654.0,0.31228541]
[1739894525577,0.32582475,95655.0,95654.0,0.52140991]
[1739894525578,0.11670245,95655.0,95654.0,0.52140991]
[1739894525785,0.3608,95658.0,95654.0,0.31228541]
[1739894525986,0.2091209,95656.0,95654.0,0.31228541]
[1739894526178,0.2091354,95649.0,95648.0,0.00015678]
[1739894526482,0.5699354,95649.0,95648.0,0.00015678]
[1739894526972,0.3608,95649.0,95648.0,0.00015678]
[1739894527373,0.3608,95649.0,95648.0,0.05235678]
[1739894528775,0.3628,95649.0,95648.0,0.05235678]
[1739894529574,0.37485466,95649.0,95648.0,0.05235678]
[1739894530186,0.37485466,95649.0,95648.0,0.00015678]
[1739894530876,0.3628,95649.0,95648.0,0.00015678]
[1739894532884,0.01196881,95671.0,95657.0,0.2091179]
[1739894533085,0.00801226,95677.0,95660.0,0.12611912]
[1739894533393,0.00801226,95677.0,95663.0,0.3608]
[1739894533584,0.3608,95678.0,95667.0,0.12611912]
[1739894533884,0.00056001,95685.0,95664.0,0.0522756]
[1739894534078,0.3608,95683.0,95664.0,0.0522756]
[1739894534286,0.3608,95683.0,95670.0,0.12611912]
[1739894534587,0.3608,95683.0,95675.0,0.2090779]
[1739894534789,0.3608,95683.0,95676.0,0.2090759]
[1739894535093,0.3608,95683.0,95677.0,0.2090738]
[1739894535487,0.3608,95683.0,95671.0,0.2090869]
[1739894535685,0.2090727,95678.0,95667.0,0.00015678]
[1739894535885,0.3608,95674.0,95669.0,0.2090899]
[1739894536387,0.3608,95674.0,95667.0,0.00015678]
[1739894536891,0.3608,95674.0,95672.0,0.2090847]
[1739894538281,0.3678,95674.0,95672.0,0.2090847]
[1739894539391,0.007,95674.0,95672.0,0.2090847]
[1739894540583,0.3608,95673.0,95672.0,0.001]
[1739894540792,0.4814,95673.0,95672.0,0.001]
[1739894541787,0.2090939,95668.0,95667.0,0.00015678]
[1739894541987,0.2091153,95659.0,95657.0,0.0537]
[1739894542188,0.3608,95658.0,95656.0,0.2091183]
[1739894543292,0.3608,95658.0,95650.0,0.2091319]
[1739894543496,0.3608,95658.0,95647.0,0.00015678]
[1739894543497,0.3608,95656.0,95647.0,0.00015678]
[1739894543796,0.3608,95648.0,95620.0,0.12611912]
[1739894544004,0.3608,95648.0,95612.0,0.3608]
[1739894544005,0.3608,95631.0,95628.0,0.1084]
[1739894544294,0.3608,95631.0,95629.0,0.2091792]
[1739894544789,0.7216,95631.0,95628.0,0.1084]
[1739894544993,0.7216,95631.0,95621.0,0.2091949]
[1739894544994,0.1206,95630.0,95621.0,0.2091949]
[1739894545192,0.3608,95622.0,95621.0,0.2091949]
[1739894546283,0.36836001,95631.0,95620.0,0.00015678]
[1739894546590,0.007,95631.0,95630.0,0.209177]
[1739894546788,0.3608,95635.0,95633.0,0.2091702]
[1739894546983,0.3608,95635.0,95624.0,0.2091892]
[1739894547186,0.12611912,95634.0,95624.0,0.2091892]
[1739894547382,0.3608,95626.0,95621.0,0.001]
[1739894547693,0.3608,95626.0,95623.0,0.2091919]
[1739894547997,0.3608,95626.0,95624.0,0.2091885]
[1739894549188,0.006,95631.0,95630.0,0.209177]
[1739894549391,0.003,95626.0,95623.0,0.0555]
[1739894549583,0.36095678,95640.0,95633.0,0.2091702]
[1739894549797,0.36095678,95640.0,95634.0,0.0533]
[1739894549984,0.36095678,95640.0,95634.0,0.06507525]
[1739894550191,0.00015678,95640.0,95638.0,0.2091585]
[1739894550394,0.3608,95649.0,95648.0,0.2091376]
[1739894551003,0.01181946,95659.0,95652.0,0.2091275]
[1739894551195,0.3608,95661.0,95652.0,0.2091275]
[1739894551590,0.3608,95661.0,95653.0,0.0533]
[1739894552294,0.3608,95661.0,95659.0,0.209113]
[1739894552798,0.3658,95661.0,95659.0,0.209113]
[1739894552995,0.005,95661.0,95660.0,0.3608]
[1739894553202,0.005,95661.0,95659.0,0.209113]
[1739894553394,0.002,95661.0,95660.0,0.5699114]
[1739894553593,0.002,95661.0,95660.0,0.2091114]
[1739894555188,0.005,95661.0,95660.0,0.2091114]
[1739894555591,0.005,95661.0,95659.0,0.001]
[1739894555906,0.3608,95663.0,95654.0,0.0513]
[1739894556206,0.002,95661.0,95654.0,0.0513]
[1739894557196,0.3608,95655.0,95654.0,0.0513]
[1739894557398,0.3608,95655.0,95642.0,0.2091499]
[1739894557800,0.37229371,95655.0,95642.0,0.2091499]
[1739894557998,0.02613,95654.0,95640.0,0.00156838]
[1739894558305,0.02613,95654.0,95646.0,0.2091399]
[1739894559012,0.02613,95654.0,95648.0,0.2091376]
[1739894559701,0.03113,95654.0,95648.0,0.2091376]
[1739894560103,0.03113,95654.0,95650.0,0.209132]
[1739894562195,0.03113,95654.0,95651.0,0.2091297]
[1739894562400,0.02613,95654.0,95651.0,0.2091297]
[1739894562600,0.03113,95654.0,95651.0,0.2091297]
[1739894563402,0.03113,95654.0,95652.0,0.2091277]
[1739894564706,0.00836,95653.0,95652.0,0.2091277]
[1739894565698,0.00836,95653.0,95652.0,0.2101277]
[1739894566302,0.00836,95653.0,95652.0,0.2091277]
[1739894566518,0.01336,95653.0,95652.0,0.2091277]
[1739894566907,0.01336,95653.0,95650.0,0.0602]
[1739894567208,0.01336,95653.0,95649.0,0.0633]
[1739894567411,0.01336,95653.0,95648.0,0.0589]
[1739894567907,0.01336,95653.0,95649.0,0.2091344]
[1739894568112,0.01136,95653.0,95649.0,0.2091344]
[1739894568611,0.2091344,95650.0,95644.0,0.2091457]
[1739894568912,0.01336,95653.0,95640.0,0.00156838]
[1739894569108,0.01336,95653.0,95650.0,0.2091329]
[1739894569499,0.00836,95653.0,95650.0,0.2091329]
[1739894569694,0.01336,95653.0,95650.0,0.2091329]
[1739894569901,0.2224868,95653.0,95650.0,0.2091329]
[1739894570094,0.2224868,95653.0,95649.0,0.001]
[1739894570299,0.2224868,95653.0,95652.0,0.2091289]
[1739894571210,0.2091332,95650.0,95649.0,0.001]
[1739894571403,0.209137,95649.0,95646.0,0.2091401]
[1739894571602,0.209137,95649.0,95647.0,0.20929626]
[1739894571901,0.2091376,95648.0,95647.0,0.00015686]
[1739894572312,0.2091595,95638.0,95635.0,0.2091651]
[1739894572500,0.3608,95636.0,95635.0,0.2091651]
[1739894573104,0.3721569,95636.0,95635.0,0.2091651]
[1739894573813,0.18072452,95636.0,95635.0,0.2091651]
[1739894574806,0.16936762,95636.0,95635.0,0.2091651]
[1739894576015,0.17136762,95636.0,95635.0,0.2091651]
[1739894579316,0.002,95636.0,95635.0,0.2091651]
[1739894579906,0.01036,95636.0,95635.0,0.2091651]
[1739894580510,0.00015686,95645.0,95644.0,0.2091464]
[1739894582221,0.00515686,95645.0,95644.0,0.2091464]
[1739894585516,0.03128686,95645.0,95644.0,0.2091464]
[1739894586314,0.03558686,95645.0,95640.0,0.3608]
[1739894586515,0.3608,95644.0,95635.0,0.218]
[1739894586822,0.12048,95643.0,95642.0,0.2091507]
[1739894587124,0.3608,95644.0,95635.0,0.218]
[1739894587318,0.3608,95636.0,95632.0,0.0607]
[1739894587616,0.3608,95636.0,95634.0,0.2091674]
[1739894587824,0.0582,95643.0,95632.0,0.0607]
[1739894588017,0.3296311,95642.0,95639.0,0.2091563]
[1739894588220,0.2091546,95641.0,95639.0,0.2091563]
[1739894588613,0.0582,95643.0,95632.0,0.0607]
[1739894588810,0.12048,95642.0,95641.0,0.2091526]
[1739894589011,0.3618,95644.0,95643.0,0.2091486]
[1739894589210,0.001,95644.0,95643.0,0.14109341]
[1739894589511,0.03058686,95645.0,95643.0,0.14109341]
[1739894590318,0.003,95644.0,95643.0,0.14109341]
[1739894592126,0.03358686,95645.0,95643.0,0.14109341]
[1739894592715,0.03058686,95645.0,95643.0,0.14109341]
[1739894593024,0.003,95644.0,95643.0,0.14109341]
[1739894593417,0.03358686,95645.0,95643.0,0.14109341]
[1739894595830,0.03358686,95645.0,95641.0,0.01126136]
[1739894595831,0.03358686,95645.0,95644.0,0.2091464]
[1739894596216,0.39438686,95645.0,95634.0,0.2162]
[1739894596423,0.39438686,95645.0,95638.0,0.2091595]
[1739894596719,0.39438686,95645.0,95641.0,0.2091528]
[1739894597017,0.39138686,95645.0,95642.0,0.2091497]
[1739894597211,0.39438686,95645.0,95634.0,0.2162]
[1739894597416,0.39438686,95645.0,95644.0,0.2091464]
[1739894597615,0.03358686,95645.0,95644.0,0.2091464]
[1739894598614,0.03358686,95645.0,95644.0,0.22077485]
[1739894598819,0.03258686,95645.0,95644.0,0.22077485]
[1739894599422,0.03358686,95645.0,95644.0,0.22077485]
[1739894599621,0.03358686,95645.0,95644.0,0.28387485]
[1739894599822,0.3608,95654.0,95653.0,0.2091267]
[1739894601522,0.3608,95654.0,95648.0,0.2091357]
[1739894601724,0.3608,95654.0,95644.0,0.0631]
[1739894601931,0.3608,95654.0,95652.0,0.2091267]
[1739894602431,0.2091267,95653.0,95648.0,0.2091368]
[1739894602627,0.001,95645.0,95636.0,0.0626]
[1739894602823,0.12044,95644.0,95636.0,0.0626]
[1739894603018,0.12044,95644.0,95643.0,0.2091486]
[1739894603223,0.3608,95645.0,95644.0,0.2091464]
[1739894603432,0.2091267,95653.0,95649.0,0.2091352]
[1739894603629,0.2091332,95650.0,95649.0,0.2091352]
[1739894604040,0.7216,95654.0,95636.0,0.0626]
[1739894604225,0.2091385,95648.0,95645.0,0.2091422]